[Event "50th La Roda Open 2024"]
[Site "La Roda"]
[Date "2024.03.28"]
[Round "3.6"]
[White "Newrkla, Katharina"]
[Black "Peralta, Fernando"]
[Result "0-1"]
[ECO "C10"]
[WhiteElo "2213"]
[BlackElo "2580"]
[Annotator "TA"]
[PlyCount "100"]
[EventDate "2024.03.27"]
[EventType "swiss"]
[EventCountry "ESP"]
[SourceTitle "playchess.com"]
[Source "ChessBase"]
[SourceQuality "1"]
[TimeControl "5400+30"]

{[%evp 20,100,18,21,14,15,1,0,0,0,0,0,0,0,0,12,13,0,0,0,0,0,0,-31,-37,-27,-35,-122,-120,-133,-116,-108,-106,-114,-100,-110,-107,-112,-113,-123,-126,-129,-116,-132,-118,-174,-179,-256,-259,-486,-292,-285,-204,-218,-211,-342,-345,-443,-452,-446,-442,-489,-494,-515,-504,-563,-557,-585,-580,-640,-654,-645,-621,-643,-600,-579,0,-715,-665,-1635,-1468,-1392,-1055]} 1. e4 {[%emt 0:00:03]} e6 {[%emt 0:00:07]} 2. d4 {[%emt 0:00:06]} d5 {[%emt 0:00:07]} 3. Nc3 {[%emt 0:00:05]} Nf6 {[%emt 0:00:14]} 4. Bg5 {[%emt 0:00:11]} dxe4 {[%emt 0:01:25]} 5. Nxe4 {[%emt 0:00:07]} Nbd7 {[%emt 0:00:02]} 6. Nf3 {[%emt 0:00:17]} h6 {[%emt 0:00:07]} 7. Nxf6+ {[%emt 0:00:08]} Nxf6 {[%emt 0:00:04]} 8. Be3 {[%emt 0:00:06]} Bd6 {[%emt 0:00:36] C10: French with 3 Nc3: Unusual Black 3rd moves and 3...dxe4.} 9. Bd3 {[%emt 0:00:31]} b6 {[%emt 0:02:02]} 10. Qe2 {[%emt 0:01:35]} O-O {[%emt 0:00:50]} 11. O-O-O {[%emt 0:00:07]} Bb7 {[%emt 0:00:11]} 12. Ne5 {[%emt 0:00:49]} (12. Rhg1 {simplifies} Nd5 13. Bd2 Nf4 14. Bxf4 Bxf4+ 15. Kb1) 12... Nd5 {[%emt 0:02:56]} 13. Bd2 {[%emt 0:01:04]} Qh4 $1 {[%emt 0:01:43]} 14. g4 {[%emt 0:01:40]} Nb4 {[%emt 0:04:18]} 15. Be4 {[%emt 0:00:14]} Bxe4 {[%emt 0:07:32]} 16. Qxe4 {[%emt 0:00:07]} a5 {[%emt 0:11:50]} 17. a3 {[%emt 0:06:01]} Nd5 $146 {[%emt 0:00:15]} ({Predecessor:} 17... Bxe5 18. dxe5 Nd5 19. Rhg1 b5 20. f3 Nb6 21. g5 Qxe4 22. fxe4 h5 23. b3 Kh7 {1-0 Wernitz,H (1853)-Obukhov,G (1816) SC-2019-0-00369 2018}) 18. Rhg1 {[%emt 0:11:20]} b5 {[%emt 0:18:54]} (18... Qxh2 19. g5 Bxe5 (19... Qxf2 $2 20. Rdf1 $18) 20. gxh6 $18) (18... Qxf2 $2 19. Nf3 Bxh2 20. Rh1 $18) 19. Nf3 {[%emt 0:07:28]} Qf6 {[%emt 0:08:22]} (19... Qxf2 $2 20. Rdf1 (20. g5 Bxh2 21. Nxh2 hxg5 $18) 20... Nf6 21. Qd3 $18) 20. g5 {[%emt 0:10:07]} Qg6 {[%emt 0:02:31]} 21. Rde1 {[%emt 0:16:23]} Qxe4 {[%emt 0:05:43]} 22. Rxe4 {[%emt 0:00:07]} h5 {[%emt 0:01:22]} 23. g6 {[%emt 0:14:09]} (23. Ne5 $15) 23... fxg6 $17 {[%emt 0:01:25]} 24. Ng5 {[%emt 0:01:13]} Bxh2 {[%emt 0:14:37]} ({Don't play} 24... Rxf2 25. Nxe6 b4 (25... Bxh2 26. Rxg6 Re8 27. Rxg7+ Kh8 28. Rg6 $15) (25... Rxh2 $2 26. Ree1 $19) 26. a4 (26. Rxg6 $2 bxa3 27. Rxg7+ Kh8 $19)) 25. Rg2 {[%emt 0:01:51]} Bd6 {[%emt 0:00:07]} 26. Nxe6 {[%emt 0:03:03]} Rf6 {[%emt 0:00:17]} 27. Bg5 {[%emt 0:05:05]} Kf7 {[%emt 0:01:07]} 28. Bxf6 {[%emt 0:02:42]} gxf6 {[%emt 0:00:05]} 29. Nc5 {[%emt 0:01:57]} g5 {[%emt 0:01:04]} 30. Rg1 {[%emt 0:02:10]} h4 {[%emt 0:00:28]} 31. Rh1 {[%emt 0:01:11]} a4 {[%emt 0:01:01]} 32. Nd3 {[%emt 0:03:20]} (32. Kd2 $17 {keeps fighting.}) 32... Rh8 $19 {[%emt 0:00:21]} 33. Kd1 {[%emt 0:08:06]} (33. Kd2 {is a better defense.}) 33... Bxa3 $19 {[%emt 0:01:28]} 34. Ke1 $2 {[%emt 0:01:34]} (34. Rh3) 34... Bd6 {[%emt 0:01:50]} 35. Kf1 {[%emt 0:00:13]} a3 {[%emt 0:02:12]} 36. bxa3 {[%emt 0:00:09]} Ra8 {[%emt 0:00:07]} 37. Kg2 {[%emt 0:00:47]} (37. f4 $142) 37... Rxa3 $19 {[%emt 0:00:06]} 38. Ree1 {[%emt 0:01:39]} Rc3 {[%emt 0:01:13]} 39. Rb1 {[%emt 0:00:32]} b4 {[%emt 0:00:25]} (39... Rxc2 40. Rxb5 Rd2 41. Ne5+ Ke6 (41... fxe5 $2 42. Rxd5 Ke6 43. Ra5 $19) (41... Bxe5 $2 42. dxe5 fxe5 43. Rc1 $17) 42. Nc4 Rxd4 43. Nxd6 cxd6 44. f3 $17) 40. Rb2 {[%emt 0:01:35]} Rc4 {[%emt 0:00:30]} 41. Ra1 {[%emt 0:00:12]} Rxd4 {[%emt 0:00:29]} 42. Ra5 {[%emt 0:00:07]} Nf4+ {[%emt 0:03:53]} 43. Nxf4 {[%emt 0:00:07]} Rxf4 {[%emt 0:00:13]} 44. Rb3 {[%emt 0:00:58]} Rc4 {[%emt 0:01:00]} 45. Ra2 {[%emt 0:00:29]} Kg6 {[%emt 0:01:05]} 46. Re3 {[%emt 0:00:14]} Be5 {[%emt 0:01:28]} 47. Rd3 {[%emt 0:00:14]} Bd6 {[%emt 0:00:48]} 48. Re3 $1 {[%emt 0:00:05]} g4 {[%emt 0:00:15]} 49. Re8 {[%emt 0:00:24]} h3+ {[%emt 0:00:34]} 50. Kf1 {[%emt 0:00:29]} b3 {[%emt 0:00:37]} 0-1

[Event "50th La Roda Open 2024"]
[Site "La Roda"]
[Date "2024.03.28"]
[Round "3.7"]
[White "Sonis, Francesco"]
[Black "Dias, Ricardo Pedro Cruz"]
[Result "1-0"]
[ECO "A38"]
[WhiteElo "2562"]
[BlackElo "2216"]
[Annotator "TA"]
[PlyCount "87"]
[EventDate "2024.03.27"]
[EventType "swiss"]
[EventCountry "ESP"]
[SourceTitle "playchess.com"]
[Source "ChessBase"]
[SourceQuality "1"]
[TimeControl "5400+30"]

{[%evp 18,86,20,12,19,10,35,18,68,67,73,68,79,69,91,96,116,120,120,93,187,91,150,145,144,136,195,195,198,189,207,203,222,220,331,182,323,322,348,202,490,480,470,468,786,317,317,317,462,462,462,462,462,462,462,455,455,455,455,455,455,455,440,329,5498,5490,29974,29974,29973,29974,29999]} 1. Nf3 {[%emt 0:00:06]} Nf6 {[%emt 0:01:17]} 2. b3 {[%emt 0:00:06]} g6 {[%emt 0:00:15]} 3. Bb2 {[%emt 0:00:04]} Bg7 {[%emt 0:00:05]} 4. g3 {[%emt 0:00:03]} c5 {[%emt 0:00:15]} 5. c4 {[%emt 0:00:11]} d6 {[%emt 0:00:09]} 6. Bg2 {[%emt 0:00:05]} e5 {[%emt 0:00:37]} 7. O-O {[%emt 1:33:25]} O-O {[%emt 0:01:01]} 8. d3 {[%emt 0:00:00]} Nc6 {[%emt 0:00:29]} 9. Nc3 {[%emt 0:00:00]} h6 {[%emt 0:07:36]} 10. Nd2 {[%emt 0:00:00]} Rb8 {[%emt 0:04:27]} 11. a3 {[%emt 0:00:00]} a5 {[%emt 0:04:37]} 12. Nd5 {[%emt 0:00:00]} Nxd5 {[%emt 0:05:43]} ({Black should play} 12... Bd7 $11) 13. cxd5 $14 {[%emt 0:00:00]} Nd4 {[%emt 0:01:36]} 14. e3 {[%emt 0:00:00]} Nf5 {[%emt 0:02:40] [#]} 15. b4 $1 {[%emt 0:00:00]} axb4 {[%emt 0:14:45]} (15... Re8 16. Nc4) 16. axb4 {[%emt 0:00:00]} h5 {[%emt 0:01:54]} 17. bxc5 {[%emt 0:00:00]} dxc5 {[%emt 0:51:34]} 18. Nc4 {[%emt 0:00:00][%cal Od1b3]} Qe7 {[%emt 0:00:00]} (18... Re8 $16 {might work better.}) 19. Qb3 {[%emt 0:00:00]} (19. Nb6 $18 {and White stays clearly on top.}) 19... b5 {[%emt 0:00:00]} (19... b6 $142) 20. Na5 $16 {[%emt 0:00:00] Nc6 is the strong threat. White is more active.} Bd7 {[%emt 0:00:00][%cal Oc5c4]} 21. Qc2 {[%emt 0:00:00]} Qd6 {[%emt 0:00:00] [#]} (21... Rfe8 $16 22. Nc6 Bxc6 23. dxc6 h4) 22. Rfc1 $1 $18 {[%emt 0:00:00]} Rfc8 {[%emt 0:00:00]} 23. Nc6 {[%emt 0:00:00] Repels Ne7} Bxc6 {[%emt 0:00:00]} 24. dxc6 {[%emt 0:00:00]} Bf8 {[%emt 0:00:00] [#]} 25. Ra7 $1 {[%emt 0:00:00]} Qe6 {[%emt 0:00:00]} (25... Rxc6 $142 26. Bxe5 Qxe5) 26. Qc3 {[%emt 0:00:00]} (26. c7 $142 Rb6 27. Bh3) 26... Bd6 {[%emt 0:00:00]} (26... Re8 {keeps fighting.} 27. Qa5 Rbc8) 27. Qa5 {[%emt 0:00:00] And now c7 would win.} Qb3 {[%emt 0:00:00]} 28. Ba1 $40 {[%emt 0:00:00][%mdl 128] White goes for the king.} (28. Qa1 $142) 28... Qxd3 $2 {[%emt 0:00:00]} (28... Rf8 {was worth a try.} 29. c7 Rbc8) 29. c7 {[%emt 0:00:00]} Bxc7 {[%emt 0:00:00]} 30. Rxc7 {[%emt 0:00:00]} Nxe3 {[%emt 0:00:00]} (30... Qd6 $142) 31. Rxc8+ {[%emt 0:00:00]} (31. Qa7 $142 {[%cal Oc7f7] White threatens Rxf7! and mate.} Qd2 32. Rf1 (32. R1xc5 $2 Qe1+) (32. Qxc5 Rxc7 33. Qxc7 Re8 $18)) 31... Rxc8 {[%emt 0:00:00]} 32. Qe1 {[%emt 0:00:00]} (32. fxe3 Qxe3+ 33. Kf1 Qxc1+ $19) 32... Nc2 {[%emt 0:03:30] [#]} ({Avoid the trap} 32... Nxg2 $2 33. Qxe5 (33. Kxg2 Qd5+ 34. Kg1 f6 $16) 33... Kf8 34. Qh8+ (34. Kxg2 Qf5 $18) 34... Ke7 35. Qxc8 $18) (32... Nc4 {was necessary.} 33. Bf1 (33. Bxe5 Re8 $16) 33... Qd5 34. Bxc4 bxc4 35. Qxe5 (35. Bxe5 Re8 $15) 35... Qxe5 36. Bxe5 Re8) 33. Rxc2 $1 {[%emt 0:00:00][%mdl 512]} Qxc2 {[%emt 0:00:05]} 34. Qxe5 {[%emt 0:00:00][%csl Ga1][%cal Re5g7]} Qc1+ {[%emt 0:00:09]} 35. Bf1 {[%emt 0:00:00]} Qh6 {[%emt 0:00:06] Prevents Qg7+.} 36. Bxb5 {[%emt 0:00:00]} c4 {[%emt 0:01:48] Strongly threatening ...Qc1+.} 37. Bc3 {[%emt 0:00:00]} Kh7 {[%emt 0:03:10]} 38. Ba6 {[%emt 0:00:00] This pair of bishops is nice.} Rd8 {[%emt 0:01:10]} 39. Bxc4 {[%emt 0:00:00]} Qf8 {[%emt 0:00:05]} 40. Kg2 {[%emt 0:00:00]} Rd6 $2 {[%emt 0:00:55] [#]} (40... Rd7 41. h4 f5) 41. Bxf7 $1 {[%emt 0:00:00][%mdl 512] White wants to mate with Bd5.} Rd3 {[%emt 0:00:27] [#]} (41... Rc6 42. Bd5) 42. Bxg6+ $1 {[%emt 0:00:00] White mates.} Kxg6 {[%emt 0:00:29]} 43. Qe6+ {[%emt 0:00:00]} Kg5 {[%emt 0:00:06]} 44. h4# {[%emt 0:00:00] Weighted Error Value: White=0.43/Black=0.62.  Mistake:       	White=4     	Black=10     Inaccurate:     	---       	Black=1      OK:         	White=11    	Black=9      Best:        	White=3     	Black=1      Strong:       	White=1     	---        Brilliant:      	White=2     	---} 1-0

[Event "50th La Roda Open 2024"]
[Site "La Roda"]
[Date "2024.03.28"]
[Round "3.8"]
[White "Jimenez Martinez, Jose Vicente"]
[Black "Siddharth, Jagadeesh"]
[Result "0-1"]
[ECO "A41"]
[WhiteElo "2195"]
[BlackElo "2490"]
[Annotator "TA"]
[PlyCount "68"]
[EventDate "2024.03.27"]
[EventType "swiss"]
[EventCountry "ESP"]
[SourceTitle "playchess.com"]
[Source "ChessBase"]
[SourceQuality "1"]
[TimeControl "5400+30"]

{[%evp 9,68,15,8,5,14,0,0,-18,4,0,0,-36,-44,-45,-58,-51,-39,-62,-100,-77,-44,-92,-69,-116,-127,-121,-91,-82,-72,-70,-63,-84,-56,-44,0,-18,-31,-41,-34,-29,-43,-33,-30,-41,0,0,0,-18,-17,-36,-1,-37,-24,-22,0,-18,-4,-650,-645,-604,-598]} 1. d4 {[%emt 0:00:11]} d6 {[%emt 0:00:25]} 2. c4 {[%emt 0:00:43]} e5 {[%emt 0:00:11]} 3. d5 {[%emt 0:04:54]} Be7 {[%emt 0:00:09]} 4. Nc3 {[%emt 0:01:28]} Bg5 {[%emt 0:00:10]} 5. e4 {[%emt 0:12:49]} Bxc1 {[%emt 0:00:38]} 6. Qxc1 {[%emt 0:00:27]} Nh6 {[%emt 0:03:12]} 7. Bd3 {[%emt 0:02:13]} O-O {[%emt 0:01:39]} 8. Nge2 {[%emt 0:04:31] The position is equal.} Na6 {[%emt 0:01:34]} 9. Qd2 {[%emt 0:04:39]} f5 {[%emt 0:01:48]} 10. f3 {[%emt 0:06:56]} Qh4+ {[%emt 0:04:48]} 11. g3 {[%emt 0:04:17]} Qh5 {[%emt 0:00:08]} 12. O-O {[%emt 0:07:43]} Nc5 {[%emt 0:08:30]} 13. b4 {[%emt 0:05:29]} Nxd3 {[%emt 0:05:33]} (13... fxe4 {with more complications.} 14. Nxe4 Nxe4 15. Bxe4 Bh3) 14. Qxd3 {[%emt 0:00:02]} a5 {[%emt 0:02:49]} 15. bxa5 {[%emt 0:08:48]} (15. b5 $15) 15... Rxa5 {[%emt 0:01:48]} 16. Nb5 {[%emt 0:09:30]} (16. a4 $15 {should be considered.}) 16... fxe4 $17 {[%emt 0:02:55]} 17. Qxe4 {[%emt 0:04:21][%cal Og3g4]} Bh3 {[%emt 0:01:47]} 18. Rf2 {[%emt 0:00:43][%cal Oe4e3]} Qf7 {[%emt 0:00:08][%cal Oh6g4]} 19. Qe3 {[%emt 0:07:57]} Ra4 {[%emt 0:04:05]} 20. c5 {[%emt 0:03:23]} Ra5 {[%emt 0:13:11]} (20... Qxd5 21. Nbc3 (21. Nxc7 Qxc5 22. Qxc5 dxc5 $17) 21... Qc6 22. Nxa4 Qxa4 23. Qd3 $11) 21. Nec3 {[%emt 0:05:07]} Bd7 {[%emt 0:00:34]} 22. a4 {[%emt 0:02:16]} Nf5 {[%emt 0:03:24]} 23. Qe4 {[%emt 0:00:39]} Nd4 {[%emt 0:03:21]} 24. Nxd4 {[%emt 0:01:29]} exd4 {[%emt 0:00:02]} 25. Qxd4 {[%emt 0:00:29]} Rxc5 {[%emt 0:00:05]} 26. Re1 {[%emt 0:00:45]} c6 {[%emt 0:01:40]} 27. dxc6 {[%emt 0:00:50]} Bxc6 {[%emt 0:00:01]} 28. Ne4 {[%emt 0:01:08]} Rd5 {[%emt 0:00:02]} 29. Qb4 {[%emt 0:00:19]} Qg6 {[%emt 0:02:40]} 30. Qc4 {[%emt 0:00:49]} Kh8 {[%emt 0:00:23]} 31. Re3 {[%emt 0:00:01]} h5 {[%emt 0:01:25]} 32. h4 {[%emt 0:00:52]} Re5 {[%emt 0:02:44] ...d5 is the strong threat.} 33. Kg2 $2 {[%emt 0:00:40][%mdl 8192] [#]} (33. Qd3 $11) 33... d5 $1 $19 {[%emt 0:00:30]} 34. Qd4 {[%emt 0:00:01]} Rfe8 {[%emt 0:00:01] Weighted Error Value: White=0.38/Black=0.10 (very precise) .  Loses game:     	White=1     	---        Mistake:       	White=2     	---        Inaccurate:     	White=2     	Black=5      OK:         	White=9     	Black=13     Best:        	---       	Black=1      Strong:       	---       	Black=1} 0-1

[Event "50th La Roda Open 2024"]
[Site "La Roda"]
[Date "2024.03.28"]
[Round "3.9"]
[White "Elias Reyes, Jorge Roberto"]
[Black "Tudela Corbalan, Carlos"]
[Result "1-0"]
[ECO "B06"]
[WhiteElo "2473"]
[BlackElo "2195"]
[Annotator "TA"]
[PlyCount "37"]
[EventDate "2024.03.27"]
[EventType "swiss"]
[EventCountry "ESP"]
[SourceTitle "playchess.com"]
[Source "ChessBase"]
[SourceQuality "1"]
[TimeControl "5400+30"]

{[%evp 9,37,49,52,39,62,50,91,91,187,140,205,212,222,220,464,446,456,392,668,673,628,614,576,581,659,705,697,492,485,477]} 1. e4 {[%emt 0:01:46]} g6 {[%emt 0:00:20]} 2. d4 {[%emt 0:00:04]} Bg7 {[%emt 0:00:07]} 3. Nc3 {[%emt 0:00:03]} d6 {[%emt 0:02:18]} 4. Be3 {[%emt 0:00:06]} Nd7 {[%emt 0:02:24]} 5. Qd2 {[%emt 0:00:08]} a6 {[%emt 0:01:52]} 6. h4 {[%emt 0:00:08]} Ngf6 {[%emt 0:04:28]} 7. O-O-O {[%emt 0:00:06][%cal Oe4e5] White is more active.} e5 {[%emt 0:02:25]} 8. Nf3 {[%emt 0:03:02][%cal Bg1f3,Bf3h4,Bh4f5][%mdl 32] White is better.} Qe7 {[%emt 0:03:21]} (8... exd4 $16 {was called for.} 9. Nxd4 (9. Bxd4 b5 $14) 9... h5) 9. dxe5 {[%emt 0:11:30]} (9. h5 $18 exd4 10. Bxd4 (10. Nxd4 Nxe4 11. Nxe4 Qxe4 $16)) 9... dxe5 {[%emt 0:02:44] [#]} (9... Nxe5 $16 10. Nxe5 dxe5) 10. h5 $1 $18 {[%emt 0:03:47][%mdl 512] Strongly threatening h6.} gxh5 {[%emt 0:03:43]} (10... Qd6 11. Qxd6) 11. Nh4 {[%emt 0:02:14] Threatens to win with Nf5.} Bf8 $2 {[%emt 0:13:03]} (11... Nf8 {might work better.} 12. Bc5 Qd7) 12. Nf5 {[%emt 0:17:00]} Qe6 {[%emt 0:06:37]} 13. Bg5 {[%emt 0:08:49][%cal Be3g5,Bg5f6,Bf6e5,Be5d6,Bd6f8][%mdl 32]} c6 $2 {[%emt 0:08:17] [#]} (13... b5 14. Bxf6 Qxf6) 14. Bc4 $1 {[%emt 0:05:28][%mdl 512] White is clearly winning.} Qxc4 {[%emt 0:02:20]} 15. Bxf6 {[%emt 0:00:11]} Rg8 {[%emt 0:01:50] [#]} 16. Bxe5 $1 {[%emt 0:01:20][%mdl 512]} b5 {[%emt 0:05:54][%cal Bb7b5,Bb5b4,Bb4c3][%mdl 32]} (16... Rg6 17. Bd6) 17. Bd6 {[%emt 0:08:43] aiming for Bxf8.} b4 {[%emt 0:04:19] Black is weak on the dark squares} 18. Bxf8 {[%emt 0:07:11]} bxc3 {[%emt 0:01:08]} 19. Qd6 {[%emt 0:00:48] White took control after the opening.   Weighted Error Value: White=0.32/Black=0.77.  Mistake:       	White=1     	Black=4      Inaccurate:     	---       	Black=1      OK:         	White=6     	Black=3      Brilliant:      	White=1     	---} 1-0

[Event "50th La Roda Open 2024"]
[Site "La Roda"]
[Date "2024.03.28"]
[Round "3.10"]
[White "Martinez Ramirez, Lennis"]
[Black "Romero Berruezo, Francisco"]
[Result "1-0"]
[ECO "D45"]
[WhiteElo "2450"]
[BlackElo "2194"]
[Annotator "TA"]
[PlyCount "123"]
[EventDate "2024.03.27"]
[EventType "swiss"]
[EventCountry "ESP"]
[SourceTitle "playchess.com"]
[Source "ChessBase"]
[SourceQuality "1"]
[TimeControl "5400+30"]

{[%evp 20,123,0,-18,33,25,9,9,29,15,10,8,51,37,65,84,103,75,114,104,135,103,168,179,219,225,213,217,228,233,212,222,222,227,236,226,220,219,244,252,247,237,260,234,231,247,275,269,270,261,364,348,360,354,352,346,411,400,360,255,255,239,239,239,458,443,600,545,650,587,583,590,596,596,577,430,577,430,591,586,557,430,606,606,612,612,953,929,887,898,1058,1032,973,954,1270,1176,938,922,5586,5573,1508,950,977,870,29973,29974]} 1. Nf3 {[%emt 0:00:05]} d5 {[%emt 0:08:13]} 2. c4 {[%emt 1:31:25]} c6 {[%emt 0:00:10]} 3. e3 {[%emt 0:00:00]} Nf6 {[%emt 0:00:16]} 4. Nc3 {[%emt 0:00:00]} e6 {[%emt 0:00:27]} 5. d4 {[%emt 0:00:00]} Nbd7 {[%emt 0:00:14]} 6. Qc2 {[%emt 0:00:00]} Bd6 {[%emt 0:00:31]} 7. e4 {[%emt 0:00:00]} dxe4 {[%emt 0:03:13]} 8. Nxe4 {[%emt 0:00:00]} Nxe4 {[%emt 0:00:31]} 9. Qxe4 {[%emt 0:00:00]} Bb4+ {[%emt 0:05:02]} 10. Bd2 {[%emt 0:00:00]} Bxd2+ 11. Nxd2 {[%emt 0:00:00]} Nf6 {[%emt 0:01:53]} (11... O-O $11) 12. Qe5 {[%emt 0:00:00]} O-O {[%emt 0:00:56]} 13. Be2 {[%emt 0:00:00] Wards off Ng4} b6 {[%emt 0:02:44] The position is equal.} 14. Bf3 {[%emt 0:00:00]} Bb7 {[%emt 0:00:26]} 15. O-O {[%emt 0:00:00]} Qe7 {[%emt 0:04:56]} 16. c5 {[%emt 0:00:00]} bxc5 {[%emt 0:08:45]} 17. dxc5 {[%emt 0:00:00]} Rfd8 {[%emt 0:07:48]} 18. Rfd1 {[%emt 0:00:00]} Nd5 {[%emt 0:00:22]} 19. Ne4 $36 {[%emt 0:00:00][%mdl 2048] White is in control.} Ba6 {[%emt 0:04:21]} 20. a3 {[%emt 0:00:00] White is more active.} Bb5 {[%emt 0:05:48]} (20... Bc4 $16) 21. Nd6 $18 {[%emt 0:00:00] [#] Nxb5 is the strong threat.} f6 {[%emt 0:01:34]} 22. Qe1 {[%emt 0:00:00]} Rxd6 {[%emt 0:00:42]} 23. cxd6 {[%emt 0:00:00]} Qxd6 {[%emt 0:00:04]} 24. Qa5 {[%emt 0:00:00] Dodges Ba4} Qd8 {[%emt 0:01:17]} 25. Qxd8+ {[%emt 0:00:00]} Rxd8 {[%emt 0:00:06]} 26. a4 {[%emt 0:00:00]} Ba6 {[%emt 0:00:38]} 27. Rac1 {[%emt 0:00:00]} Bb7 {[%emt 0:00:20]} 28. b4 {[%emt 0:00:00]} a6 {[%emt 0:01:06]} 29. Bxd5 {[%emt 0:00:00]} exd5 {[%emt 0:00:41][%mdl 4096] Endgame. KRR-KRB} 30. Rc5 {[%emt 0:00:00]} Rd7 {[%emt 0:02:49]} 31. f3 {[%emt 0:00:00]} Kf7 {[%emt 0:00:19]} 32. Re1 {[%emt 0:00:00]} Kf8 {[%emt 0:01:29]} 33. Kf2 {[%emt 0:00:00]} Kf7 {[%emt 0:00:31]} 34. Re3 {[%emt 0:00:00]} Re7 {[%emt 0:04:19]} 35. b5 {[%emt 0:00:00]} ({Resist} 35. Rxe7+ Kxe7 36. g4 Kd6 $18) 35... axb5 {[%emt 0:00:26]} 36. axb5 {[%emt 0:00:00]} Rc7 {[%emt 0:00:52]} 37. Ke2 {[%emt 0:00:00]} Rc8 {[%emt 0:00:29]} 38. Rec3 {[%emt 0:00:00]} Ke6 {[%emt 0:00:49]} 39. Ke3 {[%emt 0:00:00][%cal Rb5c6]} Kd6 {[%emt 0:00:20]} 40. Kd4 {[%emt 0:00:00]} Rc7 {[%emt 0:01:35]} 41. h4 {[%emt 0:00:00][%cal Bh2h4,Bh4h5][%mdl 32]} f5 $2 {[%emt 0:03:00]} (41... h5 {was necessary.} 42. Rc2 Rc8 43. bxc6 Bxc6 44. Rxd5+ Ke7 45. Re2+ (45. Rxh5 Bxf3 46. Rxc8 Bxh5 $16) 45... Kf7 46. Rxh5 Rd8+ 47. Ke3 Kg8) 42. h5 {[%emt 0:00:00]} f4 {[%emt 0:00:21]} 43. Rc1 {[%emt 0:00:00]} Rc8 {[%emt 0:00:27]} 44. bxc6 {[%emt 0:00:00]} Bxc6 {[%emt 0:01:18] [#]} 45. Rxd5+ $3 {[%emt 0:00:00][%mdl 512]} Ke6 {[%emt 0:03:52]} 46. Re1+ {[%emt 0:00:00]} Kf7 {[%emt 0:00:39]} 47. Rf5+ {[%emt 0:00:00]} Kg8 {[%emt 0:00:09]} 48. Rxf4 {[%emt 0:00:00]} Be8 {[%emt 0:00:37]} 49. Re5 {[%emt 0:00:00]} Bf7 {[%emt 0:00:34]} 50. Ke3 {[%emt 0:00:00]} Rc7 {[%emt 0:04:28]} (50... Rc3+ $142 51. Kf2 Rc2+ 52. Kg3 Rc7) 51. g4 {[%emt 0:00:00]} Rc3+ {[%emt 0:00:41]} 52. Kf2 {[%emt 0:00:00] Re7 would now be deadly.} Rc2+ {[%emt 0:00:18]} 53. Kg3 {[%emt 0:00:00]} Rc7 {[%emt 0:00:19] Prevents Re7} 54. Ra5 {[%emt 0:00:00] White threatens Ra8+ and mate.} h6 {[%emt 0:04:30]} 55. Ra8+ {[%emt 0:00:00]} Kh7 {[%emt 0:00:07]} 56. Rd4 {[%emt 0:00:00]} g6 {[%emt 0:01:11]} 57. hxg6+ {[%emt 0:00:00]} Kxg6 {[%emt 0:00:21]} 58. Rd6+ {[%emt 0:00:00]} Kg7 {[%emt 0:00:09]} 59. Rad8 {[%emt 0:00:00]} Rc5 {[%emt 0:00:19]} 60. Kh4 {[%emt 0:00:00]} h5 {[%emt 0:00:37]} 61. g5 {[%emt 0:00:00] R8d7 would kill now.} Rf5 {[%emt 0:00:16]} 62. R8d7 {[%emt 0:00:00] White took control after the opening.   Weighted Error Value: White=0.14 (very precise) /Black=0.39.  Mistake:       	---       	Black=3      Inaccurate:     	---       	Black=7      OK:         	White=22    	Black=10     Best:        	White=2     	Black=2} 1-0